[Event "Oceania Zonal Open 2023"]
[Site "Melbourne"]
[Date "2023.01.23"]
[Round "1.1"]
[White "Kuybokarov, Temur"]
[Black "Li, Jason"]
[Result "1-0"]
[ECO "C11"]
[WhiteElo "2558"]
[BlackElo "1850"]
[Annotator "TA"]
[PlyCount "61"]
[EventDate "2023.01.09"]
[EventType "swiss"]
[EventCountry "AUS"]
[SourceTitle "playchess.com"]
[Source "ChessBase"]
[SourceQuality "1"]
[TimeControl "5400+30"]

{[%evp 22,61,29,24,29,30,47,45,53,0,0,0,60,56,50,46,39,0,0,-8,-5,-11,118,115,111,80,673,658,970,1197,1190,1123,1068,991,933,871,12839,12839,12837,12838,29989,29990]} 1. e4 {[%emt 0:00:07]} e6 {[%emt 0:00:06]} 2. d4 {[%emt 0:00:10]} d5 {[%emt 0:03:12]} 3. Nc3 {[%emt 0:00:15]} Nf6 {[%emt 0:00:13]} 4. e5 {[%emt 0:00:18]} Nfd7 {[%emt 0:00:07]} 5. f4 {[%emt 0:00:18]} c5 {[%emt 0:00:07]} 6. Nf3 {[%emt 0:00:12]} Nc6 {[%emt 0:01:06]} 7. Be3 {[%emt 0:00:19]} cxd4 {[%emt 0:01:13]} 8. Nxd4 {[%emt 0:00:24]} Bc5 {[%emt 0:00:33]} 9. Qd2 {[%emt 0:02:12]} O-O {[%emt 0:02:05]} 10. O-O-O {[%emt 0:00:37]} a6 {[%emt 0:00:18]} 11. Nb3 {[%emt 0:04:41]} Bxe3 {[%emt 0:04:27]} 12. Qxe3 {[%emt 0:00:24]} b5 {[%emt 0:05:05] C11: French: Classical System: 4 e5 and 4 Bg5 dxe4.} 13. Kb1 {[%emt 0:06:00]} b4 {[%emt 0:12:45]} 14. Na4 {[%emt 0:02:12]} a5 {[%emt 0:05:20] White is slightly better.} 15. h4 {[%emt 0:14:40]} ({White should try} 15. c4 $14) 15... Ba6 $11 {[%emt 0:04:08]} 16. h5 {[%emt 0:00:40]} Qe7 {[%emt 0:17:59]} (16... Bxf1 $11 17. Rhxf1 h6) 17. Bxa6 $14 {[%emt 0:10:07]} Rxa6 {[%emt 0:00:11] [#]} 18. g4 $146 {[%emt 0:00:21]} ({Predecessor:} 18. Rc1 Rb8 19. Rhd1 Nb6 20. Nbc5 Nc4 21. Qe2 Ra7 22. g4 Rb5 23. Nb3 Rc7 24. g5 {0-1 Shabalov,A (2520)-Zherebukh,Y (2637) US Masters op 2015 (4)}) 18... Rb8 {[%emt 0:10:12]} 19. g5 {[%emt 0:05:21]} (19. Rhe1 $14) 19... Nb6 $11 {[%emt 0:03:24]} 20. Nxb6 {[%emt 0:10:41]} Raxb6 {[%emt 0:00:59]} 21. g6 {[%emt 0:12:23]} fxg6 {[%emt 0:00:42]} (21... a4 $11 22. Nc5 b3 23. cxb3 (23. axb3 axb3 24. Nxb3 Qa7 $11) 23... axb3) 22. hxg6 $16 {[%emt 0:00:27]} h6 {[%emt 0:00:08] [#]} 23. f5 $1 $36 {[%emt 0:03:12][%cal Bf4f5,Bf5f6][%mdl 2080] Keeping Black busy. White has more active pieces.} d4 $2 {[%emt 0:03:46][%mdl 8192] Black cannot hold the game after this.} (23... exf5 $16 24. Rxd5 a4) 24. Nxd4 $18 {[%emt 0:03:50]} Nxd4 {[%emt 0:00:18] [#]} 25. f6 {[%emt 0:02:12]} ({Stronger than} 25. Rxd4 exf5 26. Rg1 Qe8 $11) 25... gxf6 {[%emt 0:06:37]} 26. Rxd4 {[%emt 0:05:36]} fxe5 {[%emt 0:02:08]} 27. Rdh4 {[%emt 0:01:29]} ({Not} 27. Qxe5 a4 $16) (27. Qxh6 Qg7 28. Qxg7+ Kxg7 29. Rd7+ Kxg6 $16) 27... Qg5 {[%emt 0:05:43]} 28. Qc5 {[%emt 0:00:20]} b3 {[%emt 0:00:21]} 29. axb3 {[%emt 0:00:39]} (29. Qxa5 {leads to mate.} bxc2+ 30. Kxc2 Rxb2+ 31. Kd3 Qg3+ 32. Kc4 Rc2+) 29... Kg7 {[%emt 0:07:33] [#]} 30. Rg1 $1 {[%emt 0:01:59]} Rc8 {[%emt 0:01:58]} (30... Qxg1+ 31. Qxg1) 31. Qxb6 {[%emt 0:00:15] Artfully played by Kuybokarov.   Weighted Error Value: White=0.07 (flawless) /Black=0.95} 1-0

[Event "Oceania Zonal Open 2023"]
[Site "Melbourne"]
[Date "2023.01.23"]
[Round "1.2"]
[White "Stolyarov, Michael"]
[Black "Zhao, Zong-Yuan"]
[Result "0-1"]
[ECO "A06"]
[WhiteElo "1668"]
[BlackElo "2488"]
[Annotator "TA"]
[PlyCount "108"]
[EventDate "2023.01.09"]
[EventType "swiss"]
[EventCountry "AUS"]
[SourceTitle "playchess.com"]
[Source "ChessBase"]
[SourceQuality "1"]
[TimeControl "5400+30"]

{[%evp 9,107,3,4,5,27,0,0,-6,0,-6,-2,-4,-16,-29,-11,-31,-18,-43,-28,-86,-90,-95,-56,-79,-82,-112,-72,-75,-68,-83,-55,-75,-58,-55,-27,-35,-31,-34,-26,-33,-29,-65,-57,-66,-78,-147,-21,-21,0,0,0,0,0,0,43,0,0,-112,47,26,43,40,39,41,198,75,171,129,202,179,357,342,354,-6,-76,-201,-200,-174,-78,-230,-169,-191,-187,-354,-203,-198,0,-332,0,-184,-163,-181,-159,-152,-144,-29985,-29986,-29998,-29999,-29999]} 1. b3 {[%emt 0:00:01]} d5 {[%emt 0:03:08]} 2. Nf3 {[%emt 0:02:06]} Bf5 {[%emt 0:01:19]} 3. Bb2 {[%emt 0:01:38]} e6 {[%emt 0:01:02]} 4. e3 {[%emt 0:01:32]} Nf6 {[%emt 0:00:08]} 5. c4 {[%emt 0:01:29]} Bd6 {[%emt 0:01:32]} 6. Be2 {[%emt 0:02:01] A06: Réti Opening: 1 Nf3 d5.} Nbd7 {[%emt 0:04:39]} 7. Nc3 {[%emt 0:06:22]} h6 {[%emt 0:03:29]} 8. Rc1 {[%emt 0:03:46] The position is equal.} c6 {[%emt 0:00:17]} 9. d3 {[%emt 0:01:06]} Qe7 {[%emt 0:03:34] [#]} 10. Nh4 $146 {[%emt 0:04:08]} ({Predecessor:} 10. O-O O-O 11. Re1 e5 12. cxd5 cxd5 13. e4 Be6 14. d4 dxe4 15. dxe5 Nxe5 16. Nxe4 Nxe4 {½-½ Babik,T (2257)-Stanisz,P (2153) POL-chT 2nd League 2005 (5.62)}) 10... Bh7 {[%emt 0:00:47]} 11. g3 {[%emt 0:00:09]} O-O {[%emt 0:03:03]} 12. O-O {[%emt 0:03:06]} a6 {[%emt 0:02:36]} 13. Re1 {[%emt 0:02:55]} e5 {[%emt 0:05:42]} 14. Bf3 {[%emt 0:11:17]} (14. Bf1 $1 $11) 14... e4 {[%emt 0:01:24]} 15. Be2 {[%emt 0:01:27]} (15. dxe4 dxe4 16. Be2 Rad8) 15... Nc5 {[%emt 0:09:19]} 16. dxe4 {[%emt 0:02:14]} dxe4 {[%emt 0:01:27]} 17. b4 {[%emt 0:02:03]} Ncd7 {[%emt 0:06:43]} 18. c5 {[%emt 0:02:07]} Bc7 {[%emt 0:00:07]} 19. Qb3 {[%emt 0:07:00]} g5 {[%emt 0:10:28]} 20. Ng2 {[%emt 0:01:33]} Ne5 {[%emt 0:00:05]} 21. Red1 {[%emt 0:01:51]} Rad8 {[%emt 0:07:07]} (21... Bf5 {is interesting.} 22. Ne1 h5 23. Na4 Nfg4) 22. Ne1 {[%emt 0:04:15]} Bf5 {[%emt 0:08:26][%cal Bh7f5,Bf5e6,Be6g4,Bg4f3][%mdl 32]} (22... h5 {seems wilder.} 23. Nb1 h4 24. Rxd8 Rxd8 25. Rd1 Nfg4) 23. Rxd8 {[%emt 0:05:55]} Rxd8 {[%emt 0:00:43]} 24. Rd1 {[%emt 0:00:09] Wards off Rd2} Re8 {[%emt 0:02:40]} 25. Nc2 {[%emt 0:09:05]} Be6 {[%emt 0:02:39]} 26. Qa4 {[%emt 0:00:09]} Bg4 {[%emt 0:06:37] Black is more active.} 27. Nd4 {[%emt 0:05:37]} (27. Qb3 $142) 27... Nf3+ {[%emt 0:04:24]} (27... Bxe2 $17 28. Ncxe2 Qd7) 28. Nxf3 $11 {[%emt 0:01:35]} Bxf3 {[%emt 0:00:18]} 29. Rd2 {[%emt 0:04:44]} Be5 {[%emt 0:02:46]} 30. Qd1 {[%emt 0:00:29]} g4 {[%emt 0:00:49][%cal Oa6a5]} 31. Qc2 {[%emt 0:02:54]} Qe6 {[%emt 0:01:26]} 32. a3 {[%emt 0:01:40]} h5 {[%emt 0:00:45][%cal Oh5h4]} 33. Na4 {[%emt 0:01:12] [#]} (33. Bf1 $11) 33... h4 $1 {[%emt 0:01:31][%mdl 512]} 34. Bc4 {[%emt 0:00:13]} (34. gxh4 {simplifies} Bxe2 35. Rxe2 Nd7 36. Nb6) 34... hxg3 $1 {[%emt 0:00:51]} 35. fxg3 {[%emt 0:00:56]} Qf5 {[%emt 0:00:37]} 36. Bxe5 {[%emt 0:01:09]} Rxe5 {[%emt 0:01:33]} (36... Qxe5 $14 37. Qa2 Re7) 37. Rd8+ {[%emt 0:01:36]} (37. Nb6 $18 {and the rest is easy.}) 37... Kg7 {[%emt 0:00:11]} (37... Re8 $16 38. Rd6 Qe5) 38. Nb6 {[%emt 0:00:47] Strongly threatening Qb2.} Nh7 {[%emt 0:02:43]} (38... Re8 $16 39. Rd6 (39. Rxe8 Nxe8 40. Qc3+ f6 $16) 39... Qe5) 39. Qc3 {[%emt 0:01:49]} f6 $2 {[%emt 0:00:39]} (39... Ng5 {was worth a try.} 40. Bf1 (40. Nd7 Nh3+ 41. Kf1 Bh1+ 42. Ke1 Qf2+ 43. Kd1 Bf3+ 44. Kc1 Qg1+ 45. Kb2 Qxh2+ 46. Kc1 Qg1+ 47. Kc2 Qh2+ 48. Kc1 Qg1+ 49. Kc2 Qh2+ 50. Kc1 $11) 40... Qf6) 40. Rg8+ $18 {[%emt 0:00:54]} Kh6 {[%emt 0:00:08]} 41. Bf7 $2 {[%emt 0:00:24]} ({White should play} 41. Qd4 $18 {Qd6 would be deadly.} Ng5 42. Rh8+ Kg7 43. Qd8 Nh3+ 44. Rxh3 gxh3 45. Nd7) 41... Ng5 $11 {[%emt 0:00:20]} 42. Rg6+ {[%emt 0:01:34]} (42. Qc4 $17) 42... Kh7 $19 {[%emt 0:00:09] ( -> ...Be2)} 43. Rxg5 {[%emt 0:01:14]} ({Don't blunder} 43. Qc4 $2 Re7 44. Rxg5 Qxg5 $19) 43... Qxg5 {[%emt 0:02:36]} (43... fxg5 $19 {has better winning chances.} 44. Bc4 Re7) 44. Qd4 $2 {[%emt 0:00:21]} (44. Nd7 $17) 44... Re7 {[%emt 0:00:29]} 45. Bc4 {[%emt 0:00:56]} Qe5 {[%emt 0:01:02]} 46. Qd8 {[%emt 0:00:36] Against Qxd4} (46. Qxe5 Rxe5 47. Nc8) 46... Re8 {[%emt 0:00:08]} (46... Qa1+ $142 47. Bf1 Rf7) 47. Qd7+ {[%emt 0:00:12]} Re7 {[%emt 0:00:02]} (47... Kh6 $142 48. Bf1 Re7) 48. Qd8 {[%emt 0:00:07]} Re8 {[%emt 0:00:20]} (48... Qa1+ $142 49. Bf1 Rf7) 49. Qd7+ {[%emt 0:00:05]} Qe7 {[%emt 0:00:01]} 50. Qf5+ {[%emt 0:00:17]} Kh6 {[%emt 0:00:51]} 51. Nc8 {[%emt 0:02:43]} Qe5 {[%emt 0:00:31]} 52. Qd7 {[%emt 0:00:11][%mdl 8192] [#]} (52. Qxe5 $17 fxe5 53. Nd6) 52... Qc3 $1 {[%emt 0:01:25][%csl LRa3,LRc4,LRe3] Black mates.} 53. Qxe8 {[%emt 0:01:48]} (53. Qd4 Qe1+) 53... Qe1+ {[%emt 0:00:10]} 54. Bf1 {[%emt 0:00:09]} Qxe3# {[%emt 0:02:36] Quite a comeback for Black. A fantastic game!   Weighted Error Value: White=0.49/Black=0.61} 0-1

[Event "Oceania Zonal Open 2023"]
[Site "Melbourne"]
[Date "2023.01.23"]
[Round "1.3"]
[White "Sardana, Rishi"]
[Black "Hernandez Jimenez, Caleb"]
[Result "1-0"]
[ECO "B27"]
[WhiteElo "2459"]
[BlackElo "1098"]
[Annotator "TA"]
[PlyCount "85"]
[EventDate "2023.01.09"]
[EventType "swiss"]
[EventCountry "AUS"]
[SourceTitle "playchess.com"]
[Source "ChessBase"]
[SourceQuality "1"]
[TimeControl "5400+30"]

{[%evp 9,85,43,38,55,44,7,0,0,47,44,24,29,43,35,73,87,88,75,123,118,159,164,154,168,195,197,195,164,173,0,197,149,147,136,148,147,154,141,141,141,136,147,144,136,143,106,121,106,169,161,253,214,229,216,215,217,231,222,261,255,259,259,250,250,249,220,237,238,413,411,385,352,412,377,372,375,348,356]} 1. e4 {[%emt 0:00:06]} c5 {[%emt 0:00:06]} 2. Nf3 {[%emt 0:00:06]} g6 {[%emt 0:00:14]} 3. c3 {[%emt 0:01:01]} d5 {[%emt 0:03:10]} 4. e5 {[%emt 0:01:30]} d4 {[%emt 0:05:06]} 5. cxd4 {[%emt 0:00:15]} cxd4 {[%emt 0:00:06]} 6. Bb5+ {[%emt 0:06:25] B27: Sicilian: 2 Nf3, unusual Black 2nd moves.} Bd7 {[%emt 0:11:29] [#]} 7. e6 $146 {[%emt 0:08:13]} ({Much weaker is} 7. Nxd4 Bxb5 8. Nxb5 Nc6 $11) ({Predecessor:} 7. Bc4 Nc6 8. O-O Bg7 9. Re1 Nh6 10. d3 O-O 11. Bf4 Bg4 12. Nbd2 Nf5 13. h3 Bxf3 14. Nxf3 {1-0 Howell,D (2685)-Claridge Hansen,W (2283) BCF-chT1c 1718 (4NCL) Promotion pool 2017 (9.31)}) 7... fxe6 {[%emt 0:09:31]} 8. Bc4 {[%emt 0:00:54][%cal Oe1g1] The position is equal.} ({But not} 8. Nxd4 Bxb5 9. Nxb5 Nc6 $15) 8... Qc8 {[%emt 0:21:21]} (8... Nc6 $11 {is more appropriate.}) 9. d3 $14 {[%emt 0:01:23][%mdl 1024] White has compensation.} Bg7 {[%emt 0:01:58]} 10. O-O {[%emt 0:01:22]} Nc6 {[%emt 0:02:02]} 11. Re1 {[%emt 0:02:32]} Na5 {[%emt 0:10:16]} 12. Na3 {[%emt 0:11:00]} Nxc4 {[%emt 0:02:51]} 13. Nxc4 {[%emt 0:00:08]} Bc6 {[%emt 0:03:43]} (13... Nf6 $142) 14. Nce5 $16 {[%emt 0:14:09]} Bxe5 {[%emt 0:07:23]} 15. Nxe5 {[%emt 0:00:43]} ({Don't do} 15. Rxe5 Bxf3 16. Qxf3 Qd7 $16) 15... Nf6 {[%emt 0:00:36]} 16. Bh6 {[%emt 0:01:41]} Qc7 {[%emt 0:07:59]} 17. Rc1 {[%emt 0:02:23] [#] Threatens to win with Nxc6.} Qd6 {[%emt 0:01:23]} 18. Rc4 {[%emt 0:14:57]} Bb5 {[%emt 0:07:17]} 19. Rc1 {[%emt 0:11:22]} Bc6 $1 {[%emt 0:00:39] Wards off Qf3} 20. Bg7 {[%emt 0:11:56]} (20. Qd2 $18) 20... Rg8 {[%emt 0:00:09]} 21. Bxf6 {[%emt 0:00:29]} exf6 {[%emt 0:00:22]} 22. Nxc6 {[%emt 0:00:41]} bxc6 {[%emt 0:00:17]} 23. Qf3 {[%emt 0:02:07][%csl LRc6,LRf6]} Kd7 {[%emt 0:01:28]} 24. Qxf6 {[%emt 0:00:27]} Raf8 {[%emt 0:00:26]} 25. Qh4 $36 {[%emt 0:00:15][%mdl 2048] Keeping Black busy. White is much more active.} Rg7 {[%emt 0:01:12]} 26. Rc4 {[%emt 0:03:52]} Rf4 {[%emt 0:01:03]} 27. Qg3 {[%emt 0:00:58]} Rgf7 {[%emt 0:00:34]} 28. Re2 {[%emt 0:00:14]} e5 {[%emt 0:00:57]} (28... c5 $16 {was called for.}) 29. f3 $18 {[%emt 0:00:20]} c5 {[%emt 0:00:42]} (29... Re7 $142 30. Rec2 Rf6) 30. Qe1 {[%emt 0:00:32]} R4f5 {[%emt 0:00:30]} 31. Qa5 {[%emt 0:01:12]} Qb6 {[%emt 0:00:21]} 32. Rxc5 {[%emt 0:00:38][%cal Bc4c5,Bc5a5,Ba5a6][%mdl 32]} Qxa5 {[%emt 0:00:36]} 33. Rxa5 {[%emt 0:00:06][%mdl 4096] Endgame KRR-KRR} Kd6 {[%emt 0:00:20]} 34. Ra6+ {[%emt 0:01:07]} Kd5 {[%emt 0:00:27]} 35. Rc2 {[%emt 0:00:34] [#] Dodges Rc7. Intending Rac6 and mate.} R5f6 {[%emt 0:00:43] Against Rac6} 36. Ra5+ {[%emt 0:00:05]} Kd6 {[%emt 0:00:34]} 37. b4 {[%emt 0:01:31]} Rb7 {[%emt 0:00:27]} 38. a3 {[%emt 0:00:07]} Rb6 $2 {[%emt 0:00:25]} (38... Re6 39. Rcc5 Ke7 40. Rxe5 Rxe5 41. Rxe5+ Kd6) 39. Rxa7 {[%emt 0:00:48]} h5 {[%emt 0:00:40]} 40. h3 {[%emt 0:01:07]} Kd5 {[%emt 0:00:34]} 41. Kf2 {[%emt 0:00:30]} Rfc6 {[%emt 0:00:27]} 42. Ra5+ {[%emt 0:00:22]} Ke6 {[%emt 0:00:08]} 43. Re2 {[%emt 0:01:09] Weighted Error Value: White=0.16 (very precise) /Black=0.18 (very precise)} 1-0

[Event "Oceania Zonal Open 2023"]
[Site "Melbourne"]
[Date "2023.01.23"]
[Round "1.4"]
[White "Can, Ryan"]
[Black "Fikh, Anthony"]
[Result "1/2-1/2"]
[ECO "D37"]
[WhiteElo "1658"]
[BlackElo "1902"]
[Annotator "TA"]
[PlyCount "64"]
[EventDate "2023.01.09"]
[EventType "swiss"]
[EventCountry "AUS"]
[SourceTitle "playchess.com"]
[Source "ChessBase"]
[SourceQuality "1"]
[TimeControl "5400+30"]

{[%evp 9,64,27,22,22,28,25,34,9,19,12,16,0,0,-14,-16,-17,0,0,18,0,0,-3,0,-22,-15,-35,-12,-22,0,0,-8,-11,0,0,0,-22,0,0,14,0,0,0,41,0,0,0,0,0,0,0,0,0,0,0,3,0,16]} 1. d4 {[%emt 0:00:03]} d5 {[%emt 0:00:35]} 2. c4 {[%emt 0:00:06]} e6 {[%emt 0:00:05]} 3. Nc3 {[%emt 0:00:05]} a6 {[%emt 0:00:18]} 4. cxd5 {[%emt 0:01:23]} exd5 {[%emt 0:00:22]} 5. Nf3 {[%emt 0:01:07]} Nf6 {[%emt 0:00:09]} 6. Bg5 {[%emt 0:01:20] D37: Queen's Gambit Declined: 5 Bf4.} Be6 {[%emt 0:00:11]} 7. e3 {[%emt 0:01:58]} Nbd7 {[%emt 0:01:24]} 8. Be2 {[%emt 0:02:04] White is slightly better.} Bd6 {[%emt 0:01:31]} 9. O-O {[%emt 0:00:57]} O-O {[%emt 0:01:06]} 10. a3 {[%emt 0:02:25]} c6 {[%emt 0:04:27]} 11. b4 {[%emt 0:04:29]} h6 {[%emt 0:07:09]} 12. Bh4 {[%emt 0:01:31]} Re8 {[%emt 0:20:39] [#]} 13. Qc2 $146 {[%emt 0:05:46]} ({Predecessor:} 13. Na4 b5 14. Nc5 Nb6 15. Ne5 Qc7 16. Bxf6 gxf6 17. Nf3 Kh8 18. g3 Rg8 19. Nh4 {0-1 Begunov,K (2325)-Mikhailovsky,V (2197) Titled Tuesday intern op 03rd Aug blitz 2021 (11)}) 13... Bg4 {[%emt 0:11:52]} 14. Bg3 {[%emt 0:13:20]} Bxg3 {[%emt 0:00:25]} 15. hxg3 {[%emt 0:00:09]} Qe7 {[%emt 0:11:52]} 16. Nd2 {[%emt 0:09:07]} h5 {[%emt 0:04:24]} 17. Bf3 {[%emt 0:02:22]} Qd6 {[%emt 0:02:04]} 18. Qd3 {[%emt 0:04:02]} g6 {[%emt 0:01:08]} 19. e4 {[%emt 0:06:27]} dxe4 {[%emt 0:00:57]} 20. Ndxe4 {[%emt 0:00:48]} Qe7 {[%emt 0:09:20]} 21. Rfe1 {[%emt 0:08:54]} Bf5 {[%emt 0:02:25]} 22. Qd2 {[%emt 0:00:24] [#] And now Nc5 would win.} Nxe4 {[%emt 0:03:51]} (22... Bxe4 {seems wilder.} 23. Qf4 Nd5 24. Qxe4 N7f6) 23. Bxe4 {[%emt 0:04:03]} Qf6 {[%emt 0:00:48]} 24. Bxf5 {[%emt 0:03:06]} Qxf5 {[%emt 0:00:45]} 25. d5 {[%emt 0:01:20]} Ne5 {[%emt 0:03:09]} 26. Qf4 {[%emt 0:03:17]} Qxf4 {[%emt 0:03:48] The position is equal.} 27. gxf4 {[%emt 0:00:06]} Nd3 {[%emt 0:00:42][%csl LRe1,LRf4]} 28. Rxe8+ {[%emt 0:01:24]} Rxe8 {[%emt 0:00:01]} 29. dxc6 {[%emt 0:00:18]} bxc6 {[%emt 0:00:01]} 30. g3 {[%emt 0:00:28]} a5 {[%emt 0:08:24]} 31. Rd1 {[%emt 0:06:38]} Nb2 {[%emt 0:01:13]} 32. Rb1 {[%emt 0:04:19]} Nc4 {[%emt 0:00:26] A rather calm draw.   Weighted Error Value: White=0.09 (flawless) /Black=0.08 (flawless)} 1/2-1/2

[Event "Oceania Zonal Open 2023"]
[Site "Melbourne"]
[Date "2023.01.23"]
[Round "1.5"]
[White "Bjelobrk, Igor"]
[Black "Ha, Timothy Huy Minh"]
[Result "1-0"]
[ECO "D30"]
[WhiteElo "2405"]
[BlackElo "1657"]
[Annotator "TA"]
[PlyCount "77"]
[EventDate "2023.01.09"]
[EventType "swiss"]
[EventCountry "AUS"]
[SourceTitle "playchess.com"]
[Source "ChessBase"]
[SourceQuality "1"]
[TimeControl "5400+30"]

{[%evp 9,77,0,8,0,2,14,13,4,10,1,0,16,16,9,19,8,10,14,36,23,22,22,22,23,14,22,11,21,12,0,71,74,75,75,75,68,73,70,71,67,93,107,105,101,170,154,180,166,189,189,189,133,212,221,235,151,162,170,153,132,920,914,837,384,511,506,860,836,29969,29969]} 1. d4 {[%emt 0:00:08]} d5 {[%emt 0:00:07]} 2. c4 {[%emt 0:00:08]} e6 {[%emt 0:00:06]} 3. Nf3 {[%emt 0:00:13]} Nf6 {[%emt 0:00:16]} 4. e3 {[%emt 0:00:59]} Be7 {[%emt 0:01:52]} 5. Bd3 {[%emt 0:02:13]} dxc4 {[%emt 0:01:26]} 6. Bxc4 {[%emt 0:00:05] D30: Queen's Gambit Declined: Systems without Nc3.} c5 {[%emt 0:01:21]} 7. O-O {[%emt 0:00:33]} O-O {[%emt 0:00:57]} 8. b3 {[%emt 0:01:28] The position is equal.} cxd4 {[%emt 0:02:40]} 9. Nxd4 {[%emt 0:00:20]} a6 {[%emt 0:02:59]} 10. Bb2 {[%emt 0:00:41]} b5 {[%emt 0:02:23]} 11. Be2 {[%emt 0:00:09]} Bb7 {[%emt 0:00:43] [#]} 12. a4 $146 {[%emt 0:02:01]} ({Predecessor:} 12. Nd2 Nbd7 13. Bf3 Nd5 14. Rc1 Rc8 15. Qe2 N7f6 16. Rfd1 Qa5 17. a4 Bb4 18. Ne4 Nxe4 19. Bxe4 {1-0 Brejnik,G (1846)-Pultinevicius,P EU-ch U12 Prague 2012 (4)}) 12... b4 {[%emt 0:01:48]} (12... Qd5 $2 13. Bf3 (13. axb5 $2 Qxg2#) 13... Qd7 14. axb5 $16) 13. Nd2 {[%emt 0:00:31]} Nc6 {[%emt 0:02:32]} 14. Bf3 {[%emt 0:21:33]} Nd5 {[%emt 0:05:19]} 15. Nxc6 {[%emt 0:07:44]} Bxc6 {[%emt 0:00:16]} 16. Rc1 {[%emt 0:00:54] Prevents Nc3.} Rc8 {[%emt 0:17:09][%cal Od5c3]} 17. Ne4 {[%emt 0:01:42] Prevents Nc3} Ba8 {[%emt 0:10:09]} 18. Rxc8 {[%emt 0:15:23]} Qxc8 {[%emt 0:00:13]} 19. Qd4 {[%emt 0:00:38][%csl Gb2][%cal Rd4g7] [#] Prevents Nc3} (19. Qa1 {simplifies} f6 20. Rc1 Qd7 21. Qb1) 19... Nc3 {[%emt 0:02:35]} 20. Nxc3 $40 {[%emt 0:07:59][%mdl 128] White is out for blood.} bxc3 {[%emt 0:00:10]} 21. Qxc3 {[%emt 0:00:51]} (21. Bxc3 $2 Bf6 22. Qd3 Rd8 $19) 21... Qxc3 {[%emt 0:00:06]} 22. Bxc3 {[%emt 0:00:09]} Bxf3 {[%emt 0:00:03]} 23. gxf3 {[%emt 0:00:05][%mdl 4096] Endgame KRB-KRB} Rc8 {[%emt 0:02:46]} 24. Bd4 {[%emt 0:05:32]} f5 {[%emt 0:02:25]} 25. Rd1 {[%emt 0:01:36]} Rc2 {[%emt 0:03:49]} 26. Be5 {[%emt 0:00:54]} Bh4 {[%emt 0:05:07]} (26... h5 $16) 27. Bg3 $18 {[%emt 0:04:55]} Bxg3 {[%emt 0:01:53]} 28. hxg3 $16 {[%emt 0:00:07] Rd6 is the strong threat. KR-KR} (28. fxg3 $6 Kf7 $14) 28... Rb2 {[%emt 0:00:14]} 29. Rd6 {[%emt 0:01:26]} Kf7 {[%emt 0:00:12]} 30. Rb6 {[%emt 0:02:58]} (30. a5 $18) 30... Rb1+ {[%emt 0:00:56]} (30... g5 $16 {was called for.} 31. Rxa6 Rxb3 32. Ra7+ Kg6) 31. Kg2 $18 {[%emt 0:00:05]} g5 {[%emt 0:02:49]} 32. a5 {[%emt 0:01:35]} ({Resist} 32. Rxa6 Rxb3 33. Ra7+ Kg6) 32... h5 {[%emt 0:00:52]} 33. e4 {[%emt 0:08:32]} f4 {[%emt 0:00:34]} 34. e5 {[%emt 0:04:14] Strongly threatening Rb7+.} h4 $2 {[%emt 0:00:52][%mdl 8192] This move loses the game for Black.} (34... fxg3 $16 35. fxg3 Rb2+ 36. Kg1 Rb1+ 37. Kh2 Rb2+ 38. Kg1 Rb1+ 39. Kg2 Rb2+ 40. Kg1) 35. gxf4 {[%emt 0:01:13]} (35. Rxa6 hxg3 36. fxg3 Rb2+ 37. Kh3 Rxb3 $16) 35... gxf4 {[%emt 0:00:09]} 36. Rb4 {[%emt 0:00:17]} (36. Rxa6 $142 Rxb3 37. Ra8) 36... Ke7 {[%emt 0:01:19]} 37. Rb7+ {[%emt 0:04:52]} ({Not} 37. Rxf4 Rxb3 38. Rxh4 Ra3 39. Rh7+ Kd8 $18) 37... Kf8 {[%emt 0:01:17]} (37... Kd8 $142 38. Rb6 Kd7) 38. b4 {[%emt 0:00:20][%cal Bb3b4,Bb4b5][%mdl 32] Intending b5! and mate.} Ke8 {[%emt 0:00:06] [#]} 39. b5 $1 {[%emt 0:00:43][%mdl 576] Promotion.   Weighted Error Value: White=0.21 (precise) /Black=0.43} 1-0